Department Family,Date Paid,Expense Type,Expense Area,Supplier,Transaction Number,Amount,Vat Inclusive
Crown Prosecution Service ,02/09/22,Advice/PreSending Very High Cost Cases Full Scheme,Mersey Cheshire Complex Casework Unit,Harrington Street Chambers,1096572/NJS32,"31,111.06",Y
Crown Prosecution Service ,02/09/22,Crown Court Graduated Fee Scheme,East Midlands Crown Court Section,1 High Pavement Chambers,275926 Waddell PLJ*,"53,425.98",Y
Crown Prosecution Service ,02/09/22,Crown Court Graduated Fee Scheme,East Midlands Crown Court Section,1 High Pavement Chambers,275926 Waddell VR*,"26,712.54",Y
Crown Prosecution Service ,05/09/22,Presentational Equipment,East Midlands Complex Casework Unit,Evidential Ltd Manchester,0000000647,"53,709.60",Y
Crown Prosecution Service ,05/09/22,Crown Court Graduated Fee Scheme,West Midlands Complex Casework Unit,Nine Bedford Row (9 Bedford Row),148202sas,"30,919.02",Y
Crown Prosecution Service ,05/09/22,Crown Court Graduated Fee Scheme,East Midlands Complex Casework Unit,Seven Bedford Row,187424DB,"28,290.84",Y
Crown Prosecution Service ,05/09/22,Costs awarded to the CPS collected by HMCTS,Corporate Programme Income,Health and Safety Executive Blackpool,849275063,"55,875.30",
Crown Prosecution Service ,05/09/22,Apprenticeship Levy payments Permanent,Other Corporate Admin Payments,HM Revenue and Customs,948PB000021422205010922,"7,300.92",
Crown Prosecution Service ,05/09/22,Apprenticeship Levy payments Permanent,Other Corporate Programme Payments,HM Revenue and Customs,948PB000021422205010922,"114,381.08",
Crown Prosecution Service ,05/09/22,Crown Court Very High Cost Cases Full Scheme,RWD North Unit,9 St John Street (Nine),NC-383207**,"31,300.30",Y
Crown Prosecution Service ,06/09/22,IT services,DTS Programme Project Cost,Accenture (UK) Ltd London,3003568137,"94,375.00",
Crown Prosecution Service ,06/09/22,Recoverable VAT control,Balance Sheet,Accenture (UK) Ltd London,3003568137,"18,875.00",Y
Crown Prosecution Service ,06/09/22,Recoverable VAT control,Balance Sheet,Xerox (UK) Ltd,900222264,"8,565.58",Y
Crown Prosecution Service ,06/09/22,Short term leases from 2 to 12 months: IT and Equipment,Print Contract,Xerox (UK) Ltd,900222264,"42,827.89",
Crown Prosecution Service ,06/09/22,IT services,DTS Programme Project Cost,CGI IT UK Ltd,GB014088733,"26,300.24",Y
Crown Prosecution Service ,07/09/22,Professional subscriptions and memberships,Operational Change,Crimeline Training Ltd Wigan,17197,"42,211.13",Y
Crown Prosecution Service ,07/09/22,Crown Court Graduated Fee Scheme,East Midlands Complex Casework Unit,Seven Bedford Row,184115LSB,"27,318.72",Y
Crown Prosecution Service ,07/09/22,Shared services,Other Corporate Admin Payments,HM Treasury,44800,"47,243.25",
Crown Prosecution Service ,07/09/22,Recoverable VAT control,Balance Sheet,HM Treasury,44800,"9,448.65",Y
Crown Prosecution Service ,07/09/22,IT services,DTS Programme Project Cost,FlyForm LTD Cardiff,INV-10972,"24,395.99",
Crown Prosecution Service ,07/09/22,Recoverable VAT control,Balance Sheet,FlyForm LTD Cardiff,INV-10972,"4,879.21",Y
Crown Prosecution Service ,08/09/22,IT non capital equipment and consumables,DTS Programme Project Cost,ACS Systems UK Limited Northampton,INV420925,"383,936.40",Y
Crown Prosecution Service ,09/09/22,Crown Court Graduated Fee Scheme,London North Complex Casework Unit,3 Raymond Buildings,248483/HD,"60,187.80",Y
Crown Prosecution Service ,12/09/22,Crown Court Graduated Fee Scheme,East Midlands Complex Casework Unit,36 Bedford Row,219092 NH,"38,169.42",Y
Crown Prosecution Service ,12/09/22,Crown Court Graduated Fee Scheme,East Midlands Complex Casework Unit,36 Bedford Row,219092 SWA,"29,530.90",Y
Crown Prosecution Service ,12/09/22,Crown Court Very High Cost Cases Full Scheme,RWD North Unit,Exchange Chambers Leeds ,535033-8/AHQC,"30,733.14",Y
Crown Prosecution Service ,12/09/22,IT services,Other IT costs,Lumen Technologies UK Ltd,600638854/1102880,"45,600.97",Y
Crown Prosecution Service ,12/09/22,Recoverable VAT control,Balance Sheet,Lumen Technologies UK Ltd,600652580/1105490,"13,598.66",Y
Crown Prosecution Service ,12/09/22,IT services,PSN Connectivity Contract,Lumen Technologies UK Ltd,600652580/1105490,"67,993.31",
Crown Prosecution Service ,12/09/22,Intangibles asset purchase clearing CMS,DTS ICT Capital Expenditure,CGI IT UK Ltd,GB014088969,"86,942.35",
Crown Prosecution Service ,12/09/22,Recoverable VAT control,Balance Sheet,CGI IT UK Ltd,GB014088969,"17,388.47",Y
Crown Prosecution Service ,12/09/22,Recoverable VAT control,Balance Sheet,CGI IT UK Ltd,GB014088970,"273,256.41",Y
Crown Prosecution Service ,12/09/22,Intangibles asset purchase clearing CMS,DTS ICT Capital Expenditure,CGI IT UK Ltd,GB014088970,"1,366,282.06",
Crown Prosecution Service ,12/09/22,IT services,DTS Programme Project Cost,CGI IT UK Ltd,GB014088972,"46,714.44",Y
Crown Prosecution Service ,12/09/22,IT services,DTS Programme Project Cost,eSynergy Solutions Ltd,INV00000748,"48,660.00",Y
Crown Prosecution Service ,12/09/22,IT services,DTS Programme Project Cost,eSynergy Solutions Ltd,INV00000751,"43,410.00",Y
Crown Prosecution Service ,12/09/22,IT services,DTS Programme Project Cost,eSynergy Solutions Ltd,INV00000752,"30,960.00",Y
Crown Prosecution Service ,12/09/22,IT services,DTS Programme Project Cost,eSynergy Solutions Ltd,INV00000753,"43,740.00",Y
Crown Prosecution Service ,12/09/22,IT services,DTS Programme Project Cost,eSynergy Solutions Ltd,INV00000754,"68,160.00",Y
Crown Prosecution Service ,12/09/22,IT services,DTS Programme Project Cost,eSynergy Solutions Ltd,INV00000762,"78,948.00",Y
Crown Prosecution Service ,13/09/22,Crown Court Graduated Fee Scheme,Mersey Cheshire Complex Casework Unit,Exchange Chambers - Liverpool,588841 NED claim 11,"34,939.32",Y
Crown Prosecution Service ,14/09/22,Crown Court Graduated Fee Scheme,West Midlands Complex Casework Unit,6 Kings Bench Walk- Chambers of D Fisher & D Perry,103381 MB,"27,848.52",Y
Crown Prosecution Service ,15/09/22,Recoverable VAT control,Balance Sheet,Government Property Agency London,00000001/19924,"8,958.80",Y
Crown Prosecution Service ,15/09/22,Reactive Maintenance,Estate and FM: Administration,Government Property Agency London,00000001/19924,309.76,
Crown Prosecution Service ,15/09/22,Reactive Maintenance,Estate and FM: Programme,Government Property Agency London,00000001/19924,"44,484.24",
Crown Prosecution Service ,15/09/22,Recoverable VAT control,Balance Sheet,Government Property Agency London,00000001/21010,"17,957.87",Y
Crown Prosecution Service ,15/09/22,Reactive Maintenance,Estate and FM: Administration,Government Property Agency London,00000001/21010,430.99,
Crown Prosecution Service ,15/09/22,Reactive Maintenance,Estate and FM: Programme,Government Property Agency London,00000001/21010,"89,358.36",
Crown Prosecution Service ,15/09/22,Recoverable VAT control,Balance Sheet,Trustmarque Solutions Ltd,2348286,"10,354.32",Y
Crown Prosecution Service ,15/09/22,IT non capital software licences,Legal Reference and ICT Licenses,Trustmarque Solutions Ltd,2348286,"51,771.61",
Crown Prosecution Service ,20/09/22,Crown Court Graduated Fee Scheme,London North Complex Casework Unit,2 Hare Court Chambers -Chambers of Orlando Pownall,116589.,"89,709.00",Y
Crown Prosecution Service ,20/09/22,Crown Court Graduated Fee Scheme,Wessex Complex Casework Unit,Pump Court Chambers - 3 Pump Court,270669-CG,"27,345.72",Y
Crown Prosecution Service ,20/09/22,Crown Court Graduated Fee Scheme,Wessex Complex Casework Unit,Pump Court Chambers - 3 Pump Court,270669-RUFF,"40,722.12",Y
Crown Prosecution Service ,20/09/22,Recoverable VAT control,Balance Sheet,Lumen Technologies UK Ltd,600652225/1103888,"23,527.96",Y
Crown Prosecution Service ,20/09/22,IT services,PSN Services Contract,Lumen Technologies UK Ltd,600652225/1103888,"117,639.82",
Crown Prosecution Service ,20/09/22,Data Communications,PSN Services Contract,Lumen Technologies UK Ltd,601229161/1106864,"32,794.27",Y
Crown Prosecution Service ,20/09/22,IT services,DTS Programme Project Cost,CGI IT UK Ltd,GB014089203,"54,090.46",Y
Crown Prosecution Service ,20/09/22,IT services,Apps and Hosting Contract,CGI IT UK Ltd,GB014089408,"1,024,785.69",
Crown Prosecution Service ,20/09/22,Recoverable VAT control,Balance Sheet,CGI IT UK Ltd,GB014089408,"204,957.14",Y
Crown Prosecution Service ,20/09/22,Other managed/contractor services,DTS Programme Project Cost,Equal Experts London,INV-11011,"68,850.00",Y
Crown Prosecution Service ,20/09/22,Crown Court Very High Cost Cases Full Scheme,RWD North Unit,9 St John Street (Nine),NC383207,"29,797.50",Y
Crown Prosecution Service ,21/09/22,Presentational Equipment,RWD North Unit,Evidential Ltd Manchester,0000000629,"34,152.00",Y
Crown Prosecution Service ,21/09/22,Crown Court Graduated Fee Scheme,South East Crown Court,6 Pump Court The Chambers of Mr Stephen Hockman,163001/DS,"29,121.72",Y
Crown Prosecution Service ,21/09/22,Crown Court Graduated Fee Scheme,South East Crown Court,6 Pump Court The Chambers of Mr Stephen Hockman,163001/ST,"58,570.20",Y
Crown Prosecution Service ,21/09/22,Crown Court Graduated Fee Scheme,South West Crown Court: North,Guildhall Chambers Bristol,187069AH,"25,268.16",Y
Crown Prosecution Service ,21/09/22,Crown Court Graduated Fee Scheme,South West Crown Court: North,Guildhall Chambers Bristol,187069Ray,"42,008.10",Y
Crown Prosecution Service ,21/09/22,Crown Court Graduated Fee Scheme,West Midlands Complex Casework Unit,Nine Bedford Row (9 Bedford Row),333863-1PGKCj french,"62,574.00",Y
Crown Prosecution Service ,21/09/22,Recoverable VAT control,Balance Sheet,Microsoft Ltd Reading,9899092048,"39,797.60",Y
Crown Prosecution Service ,21/09/22,IT non capital software licences,Legal Reference and ICT Licenses,Microsoft Ltd Reading,9899092048,"198,988.00",
Crown Prosecution Service ,21/09/22,Recoverable VAT control,Balance Sheet,CGI IT UK Ltd,GB014089586,"225,171.01",Y
Crown Prosecution Service ,21/09/22,Intangibles asset purchase clearing CMS,DTS ICT Capital Expenditure,CGI IT UK Ltd,GB014089586,"1,125,855.03",
Crown Prosecution Service ,21/09/22,Crown Court Graduated Fee Scheme,London North Complex Casework Unit,QEB Hollis Whiteman Chambers,KB 108894 A,"44,850.00",Y
Crown Prosecution Service ,22/09/22,Crown Court Very High Cost Cases Full Scheme,RWD North Unit,Lincoln House Chambers,234999 AT 13,"37,318.00",Y
Crown Prosecution Service ,22/09/22,Crown Court Graduated Fee Scheme,West Midlands Complex Casework Unit,No 5 Fountain Court Chambers,821322/HSS/RAM,"35,930.52",Y
Crown Prosecution Service ,22/09/22,Recoverable VAT control,Balance Sheet,AVR Transcription Ltd Bolton,AUG22-CPS-35946,"11,844.54",Y
Crown Prosecution Service ,22/09/22,Transcriptions and Translation,Other Corporate Programme Payments,AVR Transcription Ltd Bolton,AUG22-CPS-35946,"59,222.71",
Crown Prosecution Service ,22/09/22,UK National rail travel,PF HR Business Partnering,Clarity Travel Management,CPSHQ180922,582.11,Y
Crown Prosecution Service ,22/09/22,UK Hotels,PF People and Business Change,Clarity Travel Management,CPSHQ180922,365.00,Y
Crown Prosecution Service ,22/09/22,UK Hotels,DID Security and Information,Clarity Travel Management,CPSHQ180922,857.89,Y
Crown Prosecution Service ,22/09/22,UK Hotels,Court Business Unit,Clarity Travel Management,CPSHQ180922,170.38,Y
Crown Prosecution Service ,22/09/22,UK Hotels,Operational Change,Clarity Travel Management,CPSHQ180922,199.58,Y
Crown Prosecution Service ,22/09/22,UK Hotels,PF Learning and Development General,Clarity Travel Management,CPSHQ180922,199.58,Y
Crown Prosecution Service ,22/09/22,UK Hotels,DID DTS Change,Clarity Travel Management,CPSHQ180922,"1,050.59",Y
Crown Prosecution Service ,22/09/22,UK Hotels,CFO Estates,Clarity Travel Management,CPSHQ180922,784.27,Y
Crown Prosecution Service ,22/09/22,UK Hotels,Strategy and Policy,Clarity Travel Management,CPSHQ180922,540.00,Y
Crown Prosecution Service ,22/09/22,UK Hotels,Central Operational Training,Clarity Travel Management,CPSHQ180922,125.18,Y
Crown Prosecution Service ,22/09/22,UK Hotels,CFO Finance Operations,Clarity Travel Management,CPSHQ180922,68.00,Y
Crown Prosecution Service ,22/09/22,UK Hotels,Central Legal Training Team,Clarity Travel Management,CPSHQ180922,98.00,Y
Crown Prosecution Service ,22/09/22,UK Hotels,DID Central Leadership Team,Clarity Travel Management,CPSHQ180922,385.65,Y
Crown Prosecution Service ,22/09/22,UK Hotels,Permanent Transfer Costs,Clarity Travel Management,CPSHQ180922,946.66,Y
Crown Prosecution Service ,22/09/22,UK Hotels,PF HR Business Partnering,Clarity Travel Management,CPSHQ180922,291.00,Y
Crown Prosecution Service ,22/09/22,UK Hotels,CFO Commercial,Clarity Travel Management,CPSHQ180922,286.00,Y
Crown Prosecution Service ,22/09/22,UK Hotels,DID DTS Technology,Clarity Travel Management,CPSHQ180922,"1,909.52",Y
Crown Prosecution Service ,22/09/22,UK National rail travel,Permanent Transfer Costs,Clarity Travel Management,CPSHQ180922,216.20,
Crown Prosecution Service ,22/09/22,UK National rail travel,Operational Change,Clarity Travel Management,CPSHQ180922,"2,365.30",
Crown Prosecution Service ,22/09/22,UK National rail travel,PF HR Operations,Clarity Travel Management,CPSHQ180922,49.10,
Crown Prosecution Service ,22/09/22,UK National rail travel,PF Resourcing,Clarity Travel Management,CPSHQ180922,543.70,
Crown Prosecution Service ,22/09/22,UK National rail travel,DID Central Leadership Team,Clarity Travel Management,CPSHQ180922,"1,322.80",
Crown Prosecution Service ,22/09/22,UK National rail travel,DTUS,Clarity Travel Management,CPSHQ180922,107.10,
Crown Prosecution Service ,22/09/22,UK National rail travel,PF HR Systems and Information,Clarity Travel Management,CPSHQ180922,113.50,
Crown Prosecution Service ,22/09/22,UK National rail travel,Chief Finance Officer,Clarity Travel Management,CPSHQ180922,"1,089.20",
Crown Prosecution Service ,22/09/22,UK National rail travel,DID Operational Process,Clarity Travel Management,CPSHQ180922,666.20,
Crown Prosecution Service ,22/09/22,UK National rail travel,CFO Strategic Financial Planning,Clarity Travel Management,CPSHQ180922,605.50,
Crown Prosecution Service ,22/09/22,UK National rail travel,Director of Legal Services,Clarity Travel Management,CPSHQ180922,286.90,
Crown Prosecution Service ,22/09/22,UK National rail travel,PF Learning and Development General,Clarity Travel Management,CPSHQ180922,842.00,
Crown Prosecution Service ,22/09/22,UK National rail travel,Court Business Unit,Clarity Travel Management,CPSHQ180922,433.40,
Crown Prosecution Service ,22/09/22,UK National rail travel,Central Legal Training Team,Clarity Travel Management,CPSHQ180922,"3,618.00",
Crown Prosecution Service ,22/09/22,UK National rail travel,Private Office,Clarity Travel Management,CPSHQ180922,338.50,
Crown Prosecution Service ,22/09/22,UK National rail travel,DID Security and Information,Clarity Travel Management,CPSHQ180922,"1,424.40",
Crown Prosecution Service ,22/09/22,UK National rail travel,DID DTS Change,Clarity Travel Management,CPSHQ180922,"1,194.15",
Crown Prosecution Service ,22/09/22,UK National rail travel,PF HR Business Management,Clarity Travel Management,CPSHQ180922,130.90,
Crown Prosecution Service ,22/09/22,UK National rail travel,DID DTS Technology,Clarity Travel Management,CPSHQ180922,800.80,
Crown Prosecution Service ,22/09/22,UK National rail travel,HQ Admin Unallocated Budget,Clarity Travel Management,CPSHQ180922,312.30,
Crown Prosecution Service ,22/09/22,UK National rail travel,Compliance and Assurance,Clarity Travel Management,CPSHQ180922,495.70,
Crown Prosecution Service ,22/09/22,UK National rail travel,CFO Commercial,Clarity Travel Management,CPSHQ180922,406.40,
Crown Prosecution Service ,22/09/22,UK National rail travel,Operational Business Support,Clarity Travel Management,CPSHQ180922,145.50,
Crown Prosecution Service ,22/09/22,UK National rail travel,Central Operational Training,Clarity Travel Management,CPSHQ180922,343.30,
Crown Prosecution Service ,22/09/22,UK National rail travel,PF Analytics and Workforce Plan,Clarity Travel Management,CPSHQ180922,89.00,
Crown Prosecution Service ,22/09/22,UK National rail travel,CFO Estates,Clarity Travel Management,CPSHQ180922,281.20,
Crown Prosecution Service ,22/09/22,UK National rail travel,Corporate Communication,Clarity Travel Management,CPSHQ180922,348.60,
Crown Prosecution Service ,22/09/22,UK National rail travel,Strategy and Policy,Clarity Travel Management,CPSHQ180922,"4,182.95",
Crown Prosecution Service ,22/09/22,UK National rail travel,Operational Performance,Clarity Travel Management,CPSHQ180922,"1,509.70",
Crown Prosecution Service ,22/09/22,UK National rail travel,PF People and Business Change,Clarity Travel Management,CPSHQ180922,301.10,
Crown Prosecution Service ,22/09/22,UK National rail travel,Head of Communication,Clarity Travel Management,CPSHQ180922,83.00,
Crown Prosecution Service ,22/09/22,UK National rail travel,CFO Fin System Change and Costings,Clarity Travel Management,CPSHQ180922,226.50,
Crown Prosecution Service ,22/09/22,UK National rail travel,Legal Trainee Salaries,Clarity Travel Management,CPSHQ180922,102.80,
Crown Prosecution Service ,22/09/22,Recoverable VAT control,Balance Sheet,AVR Transcription Ltd Bolton,SI-35946,"11,844.54",Y
Crown Prosecution Service ,22/09/22,Transcriptions and Translation,Other Corporate Programme Payments,AVR Transcription Ltd Bolton,SI-35946,"59,222.71",
Crown Prosecution Service ,23/09/22,Crown Court Graduated Fee Scheme,London South Complex Casework Unit,6 Kings Bench Walk- Chambers of D Fisher & D Perry,102249 DAT2,"28,863.00",Y
Crown Prosecution Service ,23/09/22,Crown Court Graduated Fee Scheme,Wessex Complex Casework Unit,12 College Place,122176DML,"27,008.16",Y
Crown Prosecution Service ,23/09/22,Crown Court Graduated Fee Scheme,Wessex Complex Casework Unit,12 College Place,122176NT,"40,537.32",Y
Crown Prosecution Service ,23/09/22,Crown Court Very High Cost Cases Full Scheme,Cymru Wales Complex Casework Unit,Iscoed Chambers,154641.4,"28,634.00",Y
Crown Prosecution Service ,23/09/22,Crown Court Very High Cost Cases Full Scheme,Cymru Wales Complex Casework Unit,9 Park Place Chambers,327033 MC2,"39,276.00",Y
Crown Prosecution Service ,23/09/22,Crown Court Graduated Fee Scheme,Counter Terrorism Unit: Internal Funding,No 5 Fountain Court Chambers,822417/MBK/OP KAKAPO,"27,784.97",Y
Crown Prosecution Service ,23/09/22,Other Staff Costs,CFO Finance Operations,Edenred,INV26599644,2.00,
Crown Prosecution Service ,23/09/22,Salary sacrifice suspense,Balance Sheet,Edenred,INV26599644,"26,512.92",
Crown Prosecution Service ,23/09/22,General Professional Services,Strategy and Policy,Reed Talent Solutions London,R41017241M,"34,535.63",Y
Crown Prosecution Service ,28/09/22,Crown Court Very High Cost Cases Full Scheme,RWD North Unit,9 St John Street (Nine),***NCKC**383207,"34,491.96",Y
Crown Prosecution Service ,28/09/22,External legal advice - HR casework,PF Litigation,Government Legal Department,516810,"33,368.74",Y
Crown Prosecution Service ,29/09/22,Crown Court Graduated Fee Scheme,RWD North Unit,12 College Place,125209NT,"27,894.90",Y
Crown Prosecution Service ,29/09/22,Crown Court Very High Cost Cases Full Scheme,Cymru Wales Complex Casework Unit,Apex Chambers,45880-5/RR,"53,309.00",Y
Crown Prosecution Service ,29/09/22,Recoverable VAT control,Balance Sheet,WIPRO Holdings London,5000122024,"21,325.30",Y
Crown Prosecution Service ,29/09/22,IT services,End User Computing Contract,WIPRO Holdings London,5000122024,"106,626.50",
Crown Prosecution Service ,30/09/22,Right of use asset clearing Buildings,Balance Sheet,Government Property Agency London,00000001/21072,"55,776.49",
Crown Prosecution Service ,30/09/22,Right of use asset clearing Buildings,Balance Sheet,Government Property Agency London,00000001/21074,"27,106.13",
Crown Prosecution Service ,30/09/22,Crown Court Graduated Fee Scheme,London North Complex Casework Unit,23 Essex Street Chambers,193478-RSC-1,"29,015.40",Y
